bitfinex-derivatives/quotes_ETHF0:USTF0_20250125
["timestamp","ask_amount","ask_price","bid_price","bid_amount"]
[1737798657315,1.21769,3285.4,3285.0,3.34305002]
[1737798657521,7.90450228,3285.1,3284.4,7.31346581]
[1737798657814,7.90450228,3285.1,3284.0,9.98470002]
[1737798657815,0.48726,3284.1,3284.0,9.98470002]
[1737798658019,7.02941114,3284.1,3284.0,8.81382926]
[1737798661024,10.9854684,3284.1,3284.0,8.81382926]
[1737798661923,10.4982084,3284.1,3283.4,0.4857]
[1737798662127,0.48734,3283.6,3283.5,3.044]
[1737798663424,0.48734,3283.6,3283.5,43.844]
[1737798663623,3.2078,3283.7,3283.5,43.844]
[1737798663824,3.69513,3283.7,3283.5,43.844]
[1737798664627,3.2078,3283.7,3283.5,43.844]
[1737798664824,2.414,3283.7,3283.6,3.53134]
[1737798665017,1.6202,3283.7,3283.6,3.53134]
[1737798665424,1.6202,3283.7,3283.6,44.33134]
[1737798665621,5.92564668,3283.9,3283.6,44.33134]
[1737798665828,5.92564668,3283.9,3283.8,3.044]
[1737798666325,5.92564668,3283.9,3283.8,3.5208]
[1737798666526,6.41293668,3283.9,3283.8,3.5208]
[1737798668522,0.48729,3283.9,3283.8,3.5208]
[1737798668726,0.48728,3284.0,3283.8,3.5208]
[1737798668934,0.48728,3284.0,3283.8,0.4768]
[1737798669234,0.48728,3284.0,3283.9,3.044]
[1737798669828,0.48727,3284.1,3283.9,3.044]
[1737798670028,0.48727,3284.1,3284.0,3.044]
[1737798670228,0.48727,3284.1,3284.0,3.5432]
[1737798674846,0.49179489,3284.4,3284.1,0.48725]
[1737798675044,0.49179489,3284.4,3284.3,3.044]
[1737798675241,0.00456489,3284.4,3284.3,3.044]
[1737798675539,0.49178489,3284.4,3284.3,3.044]
[1737798677840,2.84013603,3284.4,3284.3,3.044]
[1737798678450,6.74476875,3284.4,3284.3,3.044]
[1737798681947,4.39641761,3284.4,3284.3,3.044]
[1737798683751,0.49178489,3284.4,3284.3,3.044]
[1737798685050,0.00456489,3284.4,3284.3,3.044]
[1737798685347,0.00456489,3284.4,3284.3,3.53123]
[1737798685546,0.49178489,3284.4,3284.3,3.53123]
[1737798686541,0.49178489,3284.4,3284.3,3.044]
[1737798686746,0.49178489,3284.4,3284.3,3.53123]
[1737798687145,0.00456489,3284.4,3284.3,3.53123]
[1737798687854,0.00456489,3284.4,3284.3,6.73903]
[1737798690454,0.48715,3284.9,3284.8,0.48716]
[1737798690647,3.6949,3285.2,3285.1,3.044]
[1737798691554,7.72680702,3285.2,3285.1,3.044]
[1737798695253,7.23970702,3285.2,3285.1,3.044]
[1737798695455,5.93021157,3285.5,3285.1,3.044]
[1737798695652,5.93021157,3285.5,3285.4,3.044]
[1737798695860,5.93021157,3285.5,3285.4,3.53107]
[1737798696260,0.00456489,3285.5,3285.4,3.53107]
[1737798696453,0.00456489,3285.5,3285.4,4.02987]
[1737798697260,0.00456489,3285.5,3285.4,3.5428]
[1737798697563,0.49161489,3285.5,3285.4,3.044]
[1737798697759,0.87336637,3285.5,3285.4,3.044]
[1737798700565,0.49161489,3285.5,3285.4,3.044]
[1737798701559,0.87324941,3285.5,3285.4,3.044]
[1737798703864,0.49161489,3285.5,3285.4,3.53107]
[1737798704066,0.00456489,3285.5,3285.4,3.53107]
[1737798706262,0.00456489,3285.5,3285.4,44.33107]
[1737798708070,8.32004423,3285.5,3285.4,44.33107]
[1737798717586,0.00456489,3285.5,3285.4,44.33107]
[1737798721385,0.00456489,3285.5,3285.4,43.844]
[1737798721582,0.49161489,3285.5,3285.4,3.044]
[1737798723578,0.49161489,3285.5,3285.4,3.53107]
[1737798723777,0.49161489,3285.5,3285.4,3.044]
[1737798724178,0.49161489,3285.5,3285.4,3.53107]
[1737798726580,0.49161489,3285.5,3285.4,3.044]
[1737798727983,6.77237477,3285.5,3285.4,3.044]
[1737798728278,6.28532477,3285.5,3284.9,4.98681367]
[1737798728478,2.34835114,3285.2,3284.9,5.47394367]
[1737798728683,0.48713,3285.0,3284.9,5.47394367]
[1737798729079,0.48713,3285.0,3284.9,8.51794367]
[1737798730486,0.48713,3285.0,3284.9,6.73894]
[1737798730689,0.48713,3285.0,3284.9,6.2518]
[1737798730890,0.48713,3285.0,3284.9,6.73894]
[1737798731481,2.35291603,3285.5,3284.9,6.2518]
[1737798731686,0.48711,3285.2,3285.1,3.53111]
[1737798732286,0.48711,3285.2,3285.1,3.044]
[1737798734889,7.6357971,3285.2,3285.1,3.044]
[1737798735286,8.01809432,3285.2,3285.1,3.044]
[1737798735793,11.9025267,3285.2,3285.1,3.044]
[1737798736782,14.25087784,3285.2,3285.1,3.044]
[1737798738692,0.48713,3285.0,3284.9,3.69494]
[1737798738892,0.48713,3285.0,3284.9,6.73894]
[1737798740995,0.48713,3285.0,3284.9,6.2518]
[1737798741691,0.503,3285.1,3284.8,0.49171489]
[1737798741896,1.01104,3284.9,3284.8,3.04856489]
[1737798742100,1.01104,3284.9,3284.8,0.00456489]
[1737798742283,4.32039114,3284.9,3284.8,0.00456489]
[1737798742783,8.33856673,3284.9,3284.8,0.00456489]
[1737798742990,7.95891376,3284.9,3284.8,0.00456489]
[1737798743496,11.96983559,3284.9,3284.8,0.00456489]
[1737798743693,11.58756825,3284.9,3284.8,0.00456489]
[1737798743903,16.58756825,3284.9,3284.8,0.00456489]
[1737798744604,16.58757621,3284.9,3284.8,0.00456489]
[1737798744901,11.96974224,3284.9,3284.8,0.00456489]
[1737798745693,11.58757622,3284.9,3284.8,0.00456489]
[1737798745889,16.58757622,3284.9,3284.8,0.00456489]
[1737798746490,11.58757622,3284.9,3284.8,0.00456489]
[1737798749498,19.92771118,3284.9,3284.8,0.00456489]
[1737798749899,19.9277266,3284.9,3284.8,0.00456489]
[1737798751192,19.92772642,3284.9,3284.8,0.00456489]
[1737798751796,20.30999497,3284.9,3284.8,0.00456489]
[1737798751992,11.96986001,3284.9,3284.8,0.00456489]
[1737798752501,16.58759146,3284.9,3284.8,0.00456489]
[1737798753292,16.58759146,3284.9,3284.1,1.034]
[1737798753293,0.48726,3284.1,3284.0,3.2078]
[1737798753592,2.83561114,3284.1,3284.0,3.2078]
[1737798753997,6.83039264,3284.1,3284.0,3.2078]
[1737798754203,6.83039264,3284.1,3284.0,6.2518]
[1737798754497,6.83039264,3284.1,3284.0,3.2078]
[1737798754801,6.83039264,3284.1,3283.7,40.8]
[1737798754802,0.48731,3283.8,3283.7,40.8]
[1737798755290,0.48731,3283.8,3283.7,3.044]
[1737798755690,4.46418212,3283.8,3283.7,3.044]
[1737798756292,6.81253326,3283.8,3283.7,3.044]
[1737798756493,0.48732,3283.7,3283.6,44.0078]
[1737798756693,0.48732,3283.7,3283.6,47.0518]
[1737798758800,0.48732,3283.7,3283.6,6.2518]
[1737798759696,4.50788374,3283.7,3283.6,6.2518]
[1737798763305,4.50788374,3283.7,3283.6,3.044]
[1737798770007,5.46488374,3283.7,3283.6,3.044]
[1737798772008,4.50788374,3283.7,3283.6,3.044]
[1737798772209,0.48732,3283.7,3283.6,3.044]
[1737798774017,0.48732,3283.7,3283.6,3.53134]
[1737798775008,7.126824,3284.0,3283.6,3.044]
[1737798775209,0.48732,3283.8,3283.7,0.48731]
[1737798775509,7.614104,3284.0,3283.9,3.044]
[1737798776810,0.48728,3284.0,3283.9,3.044]
[1737798779510,0.48728,3284.0,3283.9,3.53129]
[1737798780012,0.48728,3284.0,3283.9,3.044]
[1737798780208,1.60077125,3284.0,3283.9,3.044]
[1737798780609,1.60077125,3284.0,3283.9,3.53129]
[1737798780819,0.48728,3284.0,3283.9,3.53129]
[1737798781209,0.48725,3284.2,3283.9,4.15749125]
[1737798781415,0.48725,3284.2,3284.1,3.53125]
[1737798784709,7.126824,3284.4,3284.1,4.15749125]
[1737798784910,7.126824,3284.4,3284.3,4.64472125]
[1737798785614,7.614044,3284.4,3284.3,4.64472125]
[1737798786519,0.48722,3284.4,3284.3,4.64472125]
[1737798786818,0.48722,3284.4,3284.3,4.15749125]
[1737798787020,0.48722,3284.4,3284.3,3.044]
[1737798792010,0.48722,3284.4,3284.3,4.15749125]
[1737798793323,0.48722,3284.4,3284.3,4.64472125]
[1737798793520,0.48721,3284.5,3284.4,0.48722]
[1737798793720,0.4872,3284.6,3284.5,0.4872]
[1737798794023,0.4872,3284.6,3284.5,2.57759125]
[1737798794229,0.4872,3284.6,3284.5,46.42159125]
[1737798795123,16.65045593,3284.8,3284.5,45.93439125]
[1737798795323,0.48717,3284.7,3284.6,0.48717]
[1737798795826,16.65045593,3284.8,3284.7,0.48717]
[1737798796018,16.65045593,3284.8,3284.7,3.53117]
[1737798796525,17.13761593,3284.8,3284.7,3.53117]
[1737798797427,0.48716,3284.8,3284.7,3.53117]
[1737798798123,0.5154,3285.0,3284.7,3.044]
[1737798798322,0.5154,3285.0,3284.5,44.9847]
[1737798798323,0.5154,3285.0,3284.9,3.044]
[1737798798624,10.40662621,3285.2,3284.9,3.044]
[1737798798625,0.48712,3285.1,3285.0,0.48712]
[1737798798825,0.48712,3285.1,3285.0,2.61231125]
[1737798799022,0.48712,3285.1,3285.0,5.65631125]
[1737798799624,8.82723496,3285.2,3285.1,0.48711]
[1737798799826,8.82723496,3285.2,3285.1,3.044]
[1737798800428,0.4871,3285.2,3285.1,3.044]
[1737798801329,1.60059125,3285.2,3285.1,3.044]
[1737798805122,0.48711,3285.1,3285.0,1.0117]
[1737798805425,0.49163489,3285.5,3285.1,3.044]
[1737798805631,0.49163489,3285.5,3285.4,3.044]
[1737798806023,0.49163489,3285.5,3285.4,3.5355]
[1737798806924,0.49163489,3285.5,3285.4,3.044]
[1737798809431,0.49163489,3285.5,3285.4,4.15749125]
[1737798809432,0.00456489,3285.5,3285.4,4.15749125]
[1737798809729,6.27072457,3285.6,3285.5,3.53105]
[1737798810037,8.34013496,3286.1,3286.0,0.48698]
[1737798810333,8.34013496,3286.1,3286.0,1.60047125]
[1737798810531,8.34013496,3286.1,3286.0,4.64447125]
[1737798811735,8.34013496,3286.1,3286.0,5.87939302]
[1737798812338,8.34013496,3286.1,3286.0,46.67939302]
[1737798813526,0.00456489,3286.4,3286.0,46.19241302]
[1737798813721,0.00456489,3286.4,3286.3,3.53093]
[1737798814529,0.00456489,3286.4,3286.3,4.01643]
[1737798815329,0.00456489,3286.4,3286.3,6.36484302]
[1737798818429,0.00456489,3286.4,3286.3,4.01643]
[1737798819630,0.00456489,3286.4,3286.3,5.79544367]
[1737798819839,0.00456489,3286.4,3286.3,8.14385669]
[1737798825331,0.00456489,3286.4,3286.3,9.14145669]
[1737798825532,0.00456489,3286.4,3286.3,7.36244302]
[1737798828528,0.00456489,3286.4,3286.3,6.87694302]
[1737798832540,0.49148489,3286.4,3286.3,3.044]
[1737798832938,0.00456489,3286.4,3286.3,3.044]
[1737798833141,0.00456489,3286.4,3286.3,5.87934302]
[1737798835337,0.00456489,3286.4,3286.3,6.40434302]
[1737798837447,0.00456489,3286.4,3286.3,8.18335669]
[1737798841450,0.00456489,3286.4,3286.3,48.98335669]
[1737798843250,0.00456489,3286.4,3286.3,47.20434302]
[1737798843854,0.00456489,3286.4,3286.3,51.10735669]
[1737798844054,0.00456489,3286.4,3286.3,47.20434302]
[1737798844246,15.09764166,3288.1,3286.8,2.54913511]
[1737798844247,0.5168,3287.6,3286.8,2.54913511]
[1737798844447,1.00355,3287.6,3287.5,0.48676]
[1737798844655,1.00355,3287.6,3287.5,3.03589511]
[1737798844951,1.00355,3287.6,3287.5,2.54913511]
[1737798845149,0.5168,3287.6,3287.5,2.54913511]
[1737798845454,0.5168,3287.6,3287.5,3.03589511]
[1737798846851,1.00354,3287.6,3287.5,3.03589511]
[1737798847052,1.00354,3287.6,3287.5,2.54913511]
[1737798848062,1.00354,3287.6,3287.5,3.03589511]
[1737798849755,0.5168,3287.6,3287.5,3.03589511]
[1737798850159,0.48673,3287.7,3287.6,0.48674]
[1737798850360,0.48673,3287.7,3287.6,3.51687511]
[1737798850559,0.99232,3287.8,3287.7,0.48673]
[1737798850766,0.99232,3287.8,3287.7,2.54913511]
[1737798851062,1.37395466,3287.8,3287.7,2.54913511]
[1737798851261,1.37395466,3287.8,3287.7,3.03586511]
[1737798851452,1.37395466,3287.8,3287.7,2.54913511]
[1737798851657,0.5056,3287.8,3287.7,3.03586511]
[1737798853760,0.00456489,3287.9,3287.8,0.48671]
[1737798854060,0.00456489,3287.9,3287.8,3.03584511]
[1737798854260,0.49126489,3287.9,3287.8,3.03584511]
[1737798855257,0.00456489,3287.9,3287.8,3.03584511]
[1737798856564,0.49126489,3287.9,3287.8,3.03584511]
[1737798856761,0.00456489,3287.9,3287.8,3.03584511]
[1737798857760,0.49126489,3287.9,3287.8,3.03584511]
[1737798858465,0.00456489,3287.9,3287.8,3.03584511]
[1737798865663,0.00456489,3287.9,3287.8,4.1466537]
[1737798866661,0.49126489,3287.9,3287.8,4.1466537]
[1737798866862,0.00456489,3287.9,3287.8,4.1466537]
[1737798870467,0.00456489,3287.9,3287.8,5.92566737]
[1737798871658,0.00456489,3287.9,3287.8,7.16063801]
[1737798875974,0.00456489,3287.9,3287.8,5.38162434]
[1737798879570,10.67315166,3288.7,3288.6,0.48659]
[1737798879571,8.12858144,3288.7,3288.6,0.48659]
[1737798879881,0.48654,3289.0,3288.6,3.2078]
[1737798880076,0.48654,3289.0,3288.8,0.48655]
[1737798880378,0.48655,3289.0,3288.8,0.48655]
[1737798881177,0.48654,3289.0,3288.8,0.48655]
[1737798881677,0.4862,3289.1,3288.9,0.48654]
[1737798881877,0.48654,3289.0,3288.9,0.48654]
[1737798882178,0.48656,3288.9,3288.7,1.45737]
[1737798882377,0.48655,3289.0,3288.8,0.48656]
[1737798883280,0.48655,3289.0,3288.9,0.48655]
[1737798883674,0.48654,3289.0,3288.8,0.48656]
[1737798885373,0.48655,3288.9,3288.8,0.48656]
[1737798885574,0.4862,3289.1,3288.7,1.45737]
[1737798885773,0.48656,3288.9,3288.7,1.45737]
[1737798885970,0.48657,3288.8,3288.7,0.97437]
[1737798886982,0.6107,3289.1,3288.7,0.97437]
[1737798887177,0.48656,3288.9,3288.7,0.4878]
[1737798887378,0.6107,3289.1,3288.8,0.48655]
[1737798887379,0.48654,3289.0,3288.8,0.48655]
[1737798887775,0.4862,3289.1,3288.8,40.8]
[1737798887975,0.4862,3289.1,3289.0,0.48654]
[1737798889584,0.97272,3289.1,3289.0,0.48654]
[1737798890383,0.4862,3289.1,3288.8,40.8]
[1737798890583,0.4862,3289.1,3288.8,0.48656]
[1737798890584,0.48655,3288.9,3288.8,0.48656]
[1737798890783,0.48657,3288.8,3288.7,0.48657]
[1737798891383,0.48656,3288.9,3288.7,0.48657]
[1737798891584,0.5142,3288.8,3288.7,0.48657]
[1737798892184,0.5142,3288.8,3288.6,44.0078]
[1737798892485,0.99518,3288.7,3288.6,3.69439]
[1737798894790,0.99518,3288.7,3288.6,3.2078]
[1737798896790,0.99518,3288.7,3288.6,3.69439]
[1737798896984,0.5086,3288.7,3288.6,3.69439]
[1737798897290,0.99518,3288.7,3288.6,3.69439]
[1737798897584,0.99518,3288.7,3288.6,0.48659]
[1737798897987,0.5086,3288.7,3288.6,0.48659]
[1737798899292,0.5086,3288.7,3288.6,0.96779]
[1737798902992,0.5086,3288.7,3288.6,41.76779]
[1737798903494,0.38195057,3289.0,3288.9,0.48655]
[1737798903690,0.85925057,3289.0,3288.9,0.48655]
[1737798904087,0.85925057,3289.0,3288.9,41.28655]
[1737798904786,0.4773,3289.0,3288.9,41.28655]
[1737798907388,8.60588144,3289.0,3288.9,41.28655]
[1737798907585,8.60588144,3289.0,3288.9,0.48655]
[1737798909393,9.09242144,3289.0,3288.6,5.46801367]
[1737798909588,0.48656,3288.9,3288.8,0.48656]
[1737798910996,9.09243144,3289.0,3288.8,0.48656]
[1737798911392,9.09243144,3289.0,3288.9,0.48655]
[1737798912110,8.60588144,3289.0,3288.6,5.46801367]
[1737798912298,0.48656,3288.9,3288.8,0.48655]
[1737798913101,8.60588144,3289.0,3288.8,0.48655]
[1737798913302,9.09242144,3289.0,3288.9,0.48655]
[1737798914699,0.48655,3288.9,3288.8,0.48656]
[1737798915001,9.09242144,3289.0,3288.9,0.48655]
[1737798915494,9.47439629,3289.0,3288.9,0.48655]
[1737798915892,8.98785629,3289.0,3288.9,0.48655]
[1737798916192,8.51055629,3289.0,3288.9,0.48655]
[1737798917800,8.51055629,3289.0,3288.9,1.59659928]
[1737798918189,18.05226261,3289.0,3288.9,1.59659928]
[1737798919793,18.05226261,3289.0,3288.9,0.48655]
[1737798920603,8.51055629,3289.0,3288.9,0.48655]
[1737798921000,8.51055629,3289.0,3288.9,2.83154015]
[1737798921597,8.51055629,3289.0,3288.9,43.63154015]
[1737798921807,8.12858144,3289.0,3288.9,43.63154015]
[1737798923205,20.08216556,3289.0,3288.9,43.63154015]
[1737798925897,21.51167038,3289.0,3288.9,43.63154015]
[1737798928410,21.51167038,3289.0,3288.9,2.83154015]
[1737798932504,21.51167038,3289.0,3288.9,4.61055382]
[1737798935514,21.51167038,3289.0,3288.9,2.26556367]
[1737798936715,21.51167038,3289.0,3288.9,4.61055382]
[1737798938618,21.51167038,3289.0,3288.9,2.83154015]
[1737798939722,21.51167038,3289.0,3288.9,1.59643903]
[1737798940116,21.51167038,3289.0,3288.9,2.70632806]
[1737798940322,21.51167038,3289.0,3288.9,1.59643903]
[1737798943821,21.99821038,3289.0,3288.9,1.10988903]
[1737798944025,21.99821038,3289.0,3288.9,41.90988903]
[1737798944225,21.99821038,3289.0,3288.9,1.10988903]
[1737798945439,21.99821038,3289.0,3288.9,1.46684647]
[1737798945727,21.99821038,3289.0,3288.9,0.35695812]
[1737798947834,21.99821038,3289.0,3288.9,0.35694433]
[1737798949837,21.99821038,3289.0,3288.9,0.35690585]
[1737798951837,0.48655,3288.9,3288.8,0.48656]
[1737798952035,1.01475,3288.9,3288.8,0.84342848]
[1737798952442,1.01475,3288.9,3288.8,0.48656]
[1737798952736,1.3971015,3288.9,3288.8,0.48656]
[1737798953936,1.01475,3288.9,3288.7,41.28657]
[1737798955039,1.01475,3288.9,3288.7,44.49437]
[1737798955740,1.01475,3288.9,3288.8,0.48657]
[1737798956342,1.01475,3288.9,3288.7,44.49437]
[1737798956741,1.01475,3288.9,3288.8,0.48657]
[1737798957239,0.5282,3288.9,3288.8,0.48657]
[1737798959045,0.5282,3288.9,3288.8,2.83181365]
[1737798960534,0.5282,3288.9,3288.8,3.18869931]
[1737798961245,11.95358412,3289.0,3288.9,0.48655]
[1737798961544,11.95358412,3289.0,3288.9,1.33283566]
[1737798961739,11.95358412,3289.0,3288.9,1.84063566]
[1737798961943,11.95358412,3289.0,3288.9,1.84066137]
[1737798964443,12.44012412,3289.0,3288.9,1.84066137]
[1737798965041,11.95358412,3289.0,3288.9,1.84066137]
[1737798965641,11.95358412,3289.0,3288.9,2.9506648]
[1737798966145,11.95358412,3289.0,3288.9,2.95077352]
[1737798967640,11.95358412,3289.0,3288.9,2.59375343]
[1737798968239,12.33610535,3289.0,3288.9,2.59375343]
[1737798968840,0.38252123,3289.0,3288.9,2.59375343]
[1737798969548,0.38252123,3289.1,3289.0,0.48654]
[1737798969747,0.38252123,3289.1,3289.0,1.59654343]
[1737798973250,0.87360612,3289.2,3289.0,1.59654343]
[1737798973451,0.87360612,3289.2,3289.1,0.4935]
[1737798973649,0.87360612,3289.2,3289.1,0.98002]
[1737798975750,0.87360612,3289.2,3289.1,1.33712863]
[1737798976146,0.87360612,3289.2,3289.1,0.98002]
[1737798976346,0.49108489,3289.2,3289.1,0.85060567]
[1737798976545,0.00456489,3289.2,3288.9,0.9972]
[1737798976746,0.00456489,3289.2,3289.0,0.35710464]
[1737798977053,0.48654,3289.0,3288.9,1.48375]
[1737798977350,0.48654,3289.0,3288.9,1.84085921]
[1737798977748,0.48654,3289.0,3288.9,1.35430921]
[1737798978254,0.48654,3289.0,3288.9,1.35432115]
[1737798980751,0.48654,3289.0,3288.9,1.84087115]
[1737798984357,0.48654,3289.0,3288.9,1.84090486]
[1737798986350,0.48654,3289.0,3288.9,0.9972]
[1737798986558,0.48654,3289.0,3288.9,1.35437296]
[1737798988858,0.48654,3289.0,3288.9,1.84092296]
[1737798990461,0.48654,3289.0,3288.9,1.48375]
[1737798993760,0.99394,3289.0,3288.9,1.48375]
[1737798993961,1.37660909,3289.0,3288.9,1.48375]
[1737798997766,1.37660909,3289.0,3288.9,1.84090882]
[1737798998572,0.99394,3289.0,3288.9,1.84090882]
[1737798999664,0.99394,3289.0,3288.9,1.35435882]
[1737798999865,0.99394,3289.0,3288.9,0.35715882]
[1737798999866,4.95803519,3289.0,3288.9,0.35715882]
[1737799000171,0.48655,3288.9,3288.8,0.4854]
[1737799000365,0.48655,3288.9,3288.8,0.84258696]
[1737799000870,0.48655,3288.9,3288.8,0.84258928]
[1737799001870,0.48655,3288.9,3288.8,1.95259271]
[1737799002670,0.48655,3288.9,3288.8,0.35718928]
[1737799002870,0.48658,3288.7,3288.6,4.31780343]
[1737799003070,0.48658,3288.7,3288.6,4.67499854]
[1737799004876,0.48658,3288.7,3288.6,4.67498666]
[1737799005881,0.48658,3288.7,3288.6,4.31780343]
[1737799006173,0.86933352,3288.7,3288.6,4.31780343]
[1737799006374,0.38275352,3288.7,3288.6,4.80439343]
[1737799007075,0.38275352,3288.7,3288.6,4.31780343]
[1737799007279,0.38275352,3288.7,3288.6,4.80439343]
[1737799007473,0.86933352,3288.7,3288.6,4.31780343]
[1737799007776,0.38275352,3288.7,3288.6,4.80439343]
[1737799007978,0.86933352,3288.7,3288.6,4.31780343]
[1737799008278,0.86933352,3288.7,3288.6,4.80439343]
[1737799009077,0.38275352,3288.7,3288.6,4.80439343]
[1737799009477,0.38275352,3288.7,3288.6,5.29769343]
[1737799010282,12.33633764,3288.7,3288.6,5.29769343]
[1737799012285,12.33633764,3288.7,3288.6,2.08989343]
[1737799012981,12.33633764,3288.7,3288.6,2.44700448]
[1737799013382,11.95358412,3288.7,3288.6,2.44700448]
[1737799015082,11.95358412,3288.7,3288.6,2.44699704]
[1737799016786,11.95358412,3288.7,3288.6,2.44700598]
[1737799020890,11.95358412,3288.7,3288.6,2.08989343]
[1737799021085,11.95358412,3288.7,3288.6,2.44703024]
[1737799021383,11.95358412,3288.7,3288.6,2.44703025]
[1737799025088,12.44016412,3288.7,3288.6,1.96044025]
[1737799025292,11.95358412,3288.7,3288.6,2.44708803]
[1737799025685,12.44016412,3288.7,3288.6,2.44708803]
[1737799025984,11.95358412,3288.7,3288.6,2.44708803]
[1737799026991,11.95358412,3288.7,3288.6,1.96049803]
[1737799027289,11.95358412,3288.7,3288.6,2.44713973]
[1737799028286,11.95358412,3288.7,3288.6,2.08989343]
[1737799028486,12.33642961,3288.7,3288.6,2.08989343]
[1737799033690,12.33642961,3288.7,3288.6,2.44724492]
[1737799034396,11.95358412,3288.7,3288.6,2.44724492]
[1737799035485,11.95358412,3288.7,3288.6,2.44721332]
[1737799037296,11.95358412,3288.7,3288.6,5.65501332]
[1737799039695,11.95358412,3288.7,3288.6,5.65488492]
[1737799041597,11.95358412,3288.7,3288.6,5.6548636]
[1737799043495,11.95358412,3288.7,3288.6,5.65481652]
[1737799047001,11.95358412,3288.7,3288.6,5.65481189]
[1737799047594,11.95358412,3288.7,3288.6,5.65481347]
[1737799050402,0.5025,3289.0,3288.8,0.48657]
[1737799050403,0.98904,3289.0,3288.8,0.48657]
[1737799050598,0.98904,3289.0,3288.9,1.46711499]
[1737799051607,0.98904,3289.0,3288.9,1.46712382]
[1737799051797,0.98904,3289.0,3288.9,0.35712039]
[1737799052000,4.42230769,3289.0,3288.6,3.2078]
[1737799052200,0.48658,3288.7,3288.6,3.2078]
[1737799052505,0.48658,3288.7,3288.6,3.56492074]
[1737799053705,0.48658,3288.7,3288.6,3.5649062]
[1737799055104,0.48658,3288.7,3288.6,0.3571062]
[1737799055306,0.1242,3288.9,3288.6,0.35707872]
[1737799055506,0.48659,3288.6,3288.5,1.60180343]
[1737799055706,0.48659,3288.6,3288.5,1.95885676]
[1737799056111,0.48659,3288.6,3288.5,1.60180343]
[1737799056310,0.48659,3288.6,3288.5,1.95885695]
[1737799056510,0.48659,3288.6,3288.5,1.46705397]
[1737799056709,0.98319,3288.6,3288.5,1.46705397]
[1737799058210,0.98319,3288.6,3288.5,1.11000343]
[1737799058707,0.48662,3288.4,3288.3,4.31780343]
[1737799062610,0.8691811,3288.5,3288.3,4.80443343]
[1737799062906,0.3825611,3288.5,3288.3,4.80443343]
[1737799063110,0.48662,3288.4,3288.3,4.80443343]
[1737799064013,0.8691811,3288.5,3288.3,4.80443343]
[1737799064217,0.3825611,3288.5,3288.3,4.31780343]
[1737799064515,0.8691711,3288.5,3288.4,0.48662]
[1737799065209,0.3825611,3288.5,3288.4,0.48662]
[1737799065403,0.9832,3288.6,3288.4,0.48662]
[1737799065609,0.9832,3288.6,3288.5,1.11000343]
[1737799066121,0.9832,3288.6,3288.5,1.59661343]
[1737799071521,0.48659,3288.7,3288.5,1.11000343]
[1737799071726,0.48659,3288.7,3288.6,0.99489]
[1737799071920,0.48659,3288.7,3288.6,1.49089]
[1737799073327,3.69439,3288.7,3288.6,1.49089]
[1737799078223,4.07686122,3288.7,3288.6,1.49089]
[1737799079428,3.69439,3288.7,3288.6,1.49089]
[1737799080429,4.07106469,3288.7,3288.6,1.49089]
[1737799080629,4.07106469,3288.7,3288.6,1.0043]
[1737799080630,8.32876476,3288.7,3288.6,1.0043]
[1737799080832,0.48664,3288.3,3288.2,0.4818]
[1737799081033,0.48664,3288.3,3288.2,1.4797]
[1737799081633,0.48671,3287.8,3287.7,1.11000343]
[1737799081829,0.48671,3287.8,3287.7,2.08600343]
[1737799083138,0.48671,3287.8,3287.7,2.58670343]
[1737799088537,0.48671,3287.8,3287.7,2.94349549]
[1737799091833,3.6893,3288.0,3287.7,2.94349549]
[1737799092035,3.2078,3288.0,3287.9,1.11000343]
[1737799092234,3.2078,3288.0,3287.9,1.95349549]
[1737799093035,3.2078,3288.0,3287.9,1.95336848]
[1737799093634,11.95358412,3288.3,3287.9,1.46666848]
[1737799093940,12.44022412,3288.3,3288.2,1.59665343]
[1737799095531,11.95358412,3288.3,3287.8,1.11000343]
[1737799095731,0.48668,3288.0,3287.7,1.4767]
[1737799095938,1.11000343,3287.8,3287.2,1.11000343]
[1737799096147,0.48676,3287.5,3287.2,1.11000343]
[1737799096338,1.43176,3287.5,3287.2,1.11000343]
[1737799096537,1.92136,3287.5,3287.2,1.11000343]
[1737799096739,5.82759869,3287.5,3287.2,1.11000343]
[1737799097145,5.82759869,3287.5,3287.2,1.59110343]
[1737799097738,5.82759869,3287.5,3287.2,0.9679]
[1737799098041,5.38943671,3287.5,3286.7,3.6861]
[1737799098240,0.48685,3286.9,3286.8,0.83762378]
[1737799098441,0.48685,3286.9,3286.8,0.4811]
[1737799099647,0.00456489,3287.2,3286.8,0.4811]
[1737799099945,0.48684,3287.0,3286.8,0.4811]
[1737799103547,0.48684,3287.0,3286.8,0.96796]
[1737799105442,0.48684,3287.0,3286.8,3.31570143]
[1737799105642,0.48683,3287.1,3286.8,3.31570143]
[1737799106146,0.48683,3287.1,3286.9,40.8]
[1737799106742,0.49137489,3287.2,3286.9,41.28684]
[1737799107146,0.00456489,3287.2,3286.8,2.82884143]
[1737799107349,0.48682,3287.1,3286.9,0.48684]
[1737799108148,0.49137489,3287.2,3287.0,0.48683]
[1737799108653,0.00456489,3287.2,3287.0,0.48683]
[1737799108844,0.48682,3287.1,3287.0,0.48683]
[1737799110550,3.87563513,3287.1,3286.8,0.4811]
[1737799110849,0.48685,3286.9,3286.8,0.4811]
[1737799111050,4.37623513,3287.1,3286.5,3.71146489]
[1737799111251,0.48689,3286.6,3286.5,0.98096489]
[1737799113650,3.2078,3286.9,3286.5,0.98096489]
[1737799113847,0.48688,3286.7,3286.5,1.46786489]
[1737799116254,4.47383297,3286.8,3286.6,0.48689]
[1737799116446,0.48687,3286.8,3286.6,0.48689]
[1737799116643,0.945,3286.9,3286.6,0.48689]
[1737799116949,1.43185,3286.9,3286.6,0.48689]
[1737799117350,1.43185,3286.9,3286.5,3.32870632]
[1737799117553,1.43185,3286.9,3286.7,0.48688]
[1737799117752,1.43185,3286.9,3286.8,0.495]
[1737799119049,1.43185,3286.9,3286.8,0.98186]
[1737799120247,0.48685,3286.9,3286.8,0.98186]
[1737799123453,3.21236489,3287.2,3286.8,2.84274143]
[1737799123655,0.00456489,3287.2,3287.1,2.83456143]
[1737799124053,3.99141909,3287.1,3286.8,6.05054143]
[1737799124252,4.47824909,3287.1,3287.0,0.48682]
[1737799124655,3.99141909,3287.1,3286.8,6.05054143]